bitfinex/quotes_ETHUSD_20241122
["timestamp","ask_amount","ask_price","bid_price","bid_amount"]
[1732294426081,2.08191755,3311.3,3310.5,0.8227]
[1732294426273,2.08191755,3311.3,3310.5,6.60501825]
[1732294426584,2.08191755,3311.3,3310.5,7.32334326]
[1732294426762,2.08191755,3311.3,3310.5,1.54102501]
[1732294429250,0.7908,3310.8,3310.5,0.71832501]
[1732294429457,0.03288204,3310.7,3310.0,0.7825]
[1732294430356,2.66479959,3310.5,3309.5,0.7853]
[1732294430562,2.08191755,3310.4,3309.5,0.7853]
[1732294430895,2.08191755,3310.4,3309.6,0.302]
[1732294431970,2.08191755,3310.4,3309.8,0.302]
[1732294432288,0.03288204,3310.3,3310.0,0.302]
[1732294432459,2.08191755,3310.4,3310.0,0.302]
[1732294433172,2.08191755,3310.4,3309.6,0.302]
[1732294433578,2.08191755,3310.4,3309.7,0.03020845]
[1732294433896,2.08191755,3310.4,3309.6,0.302]
[1732294434748,0.03288204,3310.3,3309.6,0.71375084]
[1732294434998,0.03288204,3310.3,3309.6,0.302]
[1732294434999,0.8057,3310.2,3309.6,0.302]
[1732294435351,0.55,3310.3,3309.7,3.86664232]
[1732294435593,2.08191755,3310.4,3309.9,0.302]
[1732294435751,2.08191755,3310.4,3310.0,0.03020815]
[1732294435952,2.08191755,3310.4,3309.9,0.302]
[1732294436182,0.1469167,3310.6,3310.1,0.302]
[1732294437592,0.1469167,3310.6,3310.3,0.302]
[1732294438561,0.1469167,3310.6,3310.4,0.0302038]
[1732294438780,0.1448867,3310.6,3310.5,6.86664232]
[1732294438960,0.1448867,3310.6,3310.5,7.63044232]
[1732294439905,0.1448867,3310.6,3310.5,8.00586992]
[1732294440196,0.7534,3311.9,3310.7,1.0658]
[1732294440495,0.7534,3311.9,3310.9,0.302]
[1732294441128,0.7534,3311.9,3311.1,0.302]
[1732294441408,0.7534,3312.2,3311.2,1.16942314]
[1732294441901,2.08191755,3312.3,3311.5,0.302]
[1732294442056,0.005,3312.4,3311.7,0.302]
[1732294442762,0.03788204,3312.4,3311.7,0.302]
[1732294442973,0.555,3312.4,3311.7,0.302]
[1732294443304,0.55,3312.2,3311.5,0.302]
[1732294443458,0.7784,3311.9,3311.5,0.302]
[1732294443863,1.3693,3312.2,3311.5,0.302]
[1732294444087,0.03288204,3312.1,3311.5,0.302]
[1732294444301,0.03288204,3312.1,3311.1,0.302]
[1732294444500,0.03288204,3312.1,3311.2,0.3302]
[1732294444806,0.55,3312.0,3311.2,0.3302]
[1732294445105,0.55,3312.1,3311.2,0.3302]
[1732294445268,0.55,3311.9,3311.2,0.3302]
[1732294445470,0.55,3312.1,3311.2,0.3302]
[1732294445471,0.03288204,3311.8,3311.2,0.3302]
[1732294445656,0.7534,3311.8,3310.6,0.8188]
[1732294445859,0.58288204,3311.7,3310.6,0.8188]
[1732294446261,0.58288204,3311.7,3310.6,1.1208]
[1732294446492,0.55,3311.7,3310.6,1.1208]
[1732294446704,2.83531755,3311.8,3310.9,3.56464232]
[1732294446909,0.58288204,3311.7,3310.9,0.302]
[1732294447617,0.58288204,3311.7,3310.6,3.8188]
[1732294447941,0.58288204,3311.7,3310.7,0.73834423]
[1732294448392,0.55,3311.5,3310.7,0.73834423]
[1732294448592,0.03288204,3311.4,3310.7,0.73834423]
[1732294448919,0.7945,3311.2,3310.3,0.7522]
[1732294449123,0.7945,3311.2,3310.1,3.86664232]
[1732294449124,0.55,3311.0,3310.1,3.56464232]
[1732294449324,0.03288204,3311.1,3310.2,0.38666423]
[1732294449325,0.55,3310.8,3310.2,0.38666423]
[1732294449495,0.55,3310.6,3309.3,3.56464232]
[1732294449694,0.81968204,3310.7,3309.7,4.36264232]
[1732294449695,2.08191755,3310.5,3309.7,4.36264232]
[1732294449900,2.08191755,3310.5,3309.7,4.66464232]
[1732294450300,0.55,3310.4,3309.7,4.66464232]
[1732294450497,0.55,3310.4,3309.8,0.46646423]
[1732294450839,0.03288204,3310.3,3309.8,0.46646423]
[1732294451015,0.03288204,3310.3,3309.3,4.33834232]
[1732294452330,0.03288204,3310.3,3309.4,3.0]
[1732294452697,0.7786,3310.2,3309.4,3.0]
[1732294453145,0.7786,3310.2,3309.7,3.56464232]
[1732294453307,0.7786,3310.2,3309.8,3.35646423]
[1732294453744,0.55,3310.4,3309.8,3.35646423]
[1732294454238,2.08191755,3310.4,3309.8,3.35646423]
[1732294455137,0.58288204,3310.3,3309.8,3.35646423]
[1732294455346,0.58288204,3310.3,3309.8,3.0]
[1732294455516,0.55,3310.3,3309.8,3.0]
[1732294455850,0.58288204,3310.3,3309.8,3.0]
[1732294456028,2.08191755,3310.4,3309.8,3.0]
[1732294456235,2.08191755,3310.4,3309.9,0.65646423]
[1732294457104,0.7942,3310.5,3309.9,0.65646423]
[1732294457900,0.58288204,3310.4,3309.4,3.302]
[1732294458113,0.7769,3310.3,3309.4,3.0]
[1732294458332,0.03288204,3310.2,3309.4,3.0]
[1732294458671,0.7769,3310.3,3309.5,1.40696423]
[1732294460512,1.3669,3311.0,3309.8,3.0]
[1732294460713,1.39978204,3311.0,3309.9,0.302]
[1732294461017,1.3669,3311.0,3310.0,0.93935805]
[1732294461242,0.55,3310.8,3310.1,2.7694965]
[1732294461446,2.08191755,3310.9,3310.4,3.0714965]
[1732294461658,0.8237,3311.5,3310.8,3.302]
[1732294461945,2.90561755,3311.5,3310.8,3.302]
[1732294462713,2.90561755,3311.5,3310.6,0.302]
[1732294462917,0.8237,3311.5,3310.7,0.03020013]
[1732294463144,0.8309,3312.1,3311.1,0.302]
[1732294463346,0.783,3311.9,3311.1,0.302]
[1732294463557,0.03288204,3311.8,3311.1,0.302]
[1732294463764,0.783,3311.9,3311.1,0.302]
[1732294464765,0.783,3311.9,3311.2,0.776]
[1732294464924,0.77972,3311.9,3311.2,1.1838]
[1732294465124,0.77971973,3311.9,3311.2,1.1838]
[1732294465326,2.08191755,3312.2,3311.3,0.302]
[1732294465530,2.08191755,3312.3,3311.4,3.0]
[1732294465725,0.03288204,3312.2,3311.3,0.15159962]
[1732294466527,2.08191755,3312.3,3311.3,3.71552905]
[1732294466733,0.005,3312.4,3311.8,3.0]
[1732294467081,0.005,3312.4,3311.8,0.65639294]
[1732294467225,0.005,3312.4,3311.4,3.302]
[1732294467565,0.005,3312.4,3311.4,3.7174276]
[1732294467943,0.005,3312.4,3311.4,3.302]
[1732294468148,0.783,3312.3,3311.4,3.302]
[1732294468340,0.783,3312.3,3311.5,0.70175291]
[1732294471186,0.005,3312.4,3311.5,0.73194554]
[1732294471554,0.005,3312.4,3311.8,0.821]
[1732294471748,0.005,3312.4,3311.8,3.85119161]
[1732294471951,0.005,3312.4,3311.9,0.7415121]
[1732294472264,0.005,3312.4,3312.0,0.03019161]
[1732294473057,0.005,3312.4,3312.2,4.1105]
[1732294473371,0.005,3312.4,3312.3,0.4154276]
[1732294473792,0.005,3312.4,3312.2,3.83868363]
[1732294474084,0.005,3312.4,3312.3,0.77046131]
[1732294475854,0.005,3312.4,3311.9,1.1756276]
[1732294476057,0.005,3312.4,3311.7,3.86592943]
[1732294477064,0.005,3312.4,3311.7,3.56392943]
[1732294477289,0.005,3312.4,3311.8,3.43241294]
[1732294480094,0.005,3312.4,3312.2,3.0]
[1732294480268,0.005,3312.4,3312.2,3.789]
[1732294480754,0.005,3312.4,3312.3,0.302]
[1732294481898,0.005,3312.4,3311.9,0.302]
[1732294482096,0.005,3312.4,3311.9,0.78438424]
[1732294483673,1.89799959,3313.5,3311.9,0.78438424]
[1732294483859,1.71799959,3313.4,3312.1,0.302]
[1732294484801,1.71799959,3313.4,3312.1,3.302]
[1732294485435,0.55,3313.3,3312.1,0.302]
[1732294485585,0.17679996,3313.2,3312.1,0.302]
[1732294486439,2.26799959,3313.1,3312.1,0.302]
[1732294486594,0.7941,3313.0,3312.1,0.302]
[1732294487288,1.71799959,3312.9,3311.6,0.302]
[1732294487489,0.7941,3312.8,3311.6,0.302]
[1732294487710,0.7941,3312.5,3311.6,0.302]
[1732294488393,0.7941,3312.5,3311.5,0.302]
[1732294489328,0.7941,3312.5,3311.5,3.302]
[1732294491623,0.55,3312.2,3310.5,0.807]
[1732294491833,0.7829,3312.0,3310.5,0.807]
[1732294492342,0.7829,3311.8,3310.3,2.76570276]
[1732294492556,0.8166,3311.6,3310.3,2.76570276]
[1732294492851,0.8166,3311.6,3310.4,0.302]
[1732294493712,0.8166,3311.6,3310.4,3.302]
[1732294495210,1.71799959,3311.5,3310.3,0.33220435]
[1732294495414,1.71799959,3311.5,3308.6,0.01917152]
[1732294495415,0.8103,3311.1,3309.8,0.302]
[1732294495640,0.8103,3311.1,3309.8,3.06770276]
[1732294495823,0.8103,3311.1,3309.6,0.03021118]
[1732294496035,1.71799959,3311.0,3309.5,0.84470845]
[1732294496286,1.71799959,3311.0,3309.6,0.35802028]
[1732294496442,0.8309,3310.9,3309.6,0.66002028]
[1732294496817,0.8309,3310.9,3309.7,2.79591121]
[1732294497017,0.8309,3310.9,3309.8,0.34559315]
[1732294497555,0.8309,3310.9,3309.8,3.34559315]
[1732294497916,0.8309,3310.9,3309.8,3.37580157]
[1732294499255,1.71799959,3310.8,3309.8,3.37580157]
[1732294500331,1.71799959,3310.8,3309.8,3.34559315]
[1732294500553,1.97288955,3310.8,3309.8,0.34559315]
[1732294500766,0.8309,3310.9,3310.2,3.0]
[1732294501071,0.8309,3310.9,3309.9,0.7548]
[1732294501428,2.51059959,3310.8,3309.7,0.302]
[1732294501627,0.7926,3310.7,3309.7,0.302]
[1732294501848,0.7926,3310.7,3309.5,0.302]
[1732294502033,0.7926,3310.6,3309.5,0.302]
[1732294502756,0.7926,3310.6,3309.4,0.302]
[1732294502959,0.7926,3310.6,3309.5,3.09791499]
[1732294503163,0.7926,3310.6,3309.6,0.3097915]
[1732294503459,0.7926,3310.6,3309.5,0.302]
[1732294503968,0.7926,3310.6,3309.4,0.302]
[1732294504323,0.802,3310.4,3308.6,0.7644]
[1732294504637,0.802,3310.2,3308.6,1.09571658]
[1732294505468,1.71799959,3310.1,3308.6,1.09571658]
[1732294505622,1.71799959,3310.1,3308.8,3.56804692]
[1732294505826,1.71799959,3310.1,3308.9,0.03021414]
[1732294506028,1.71799959,3310.1,3309.2,1.0655]
[1732294506255,1.71799959,3310.1,3309.3,0.03021358]
[1732294506457,0.802,3310.2,3309.2,4.63354692]
[1732294506665,0.802,3311.1,3309.7,0.3011]
[1732294506837,0.802,3311.1,3309.9,0.3011]
[1732294506838,1.71799959,3311.0,3309.9,0.3011]
[1732294507367,0.7768,3310.9,3309.9,0.3011]
[1732294507591,1.02627996,3310.9,3309.9,0.3011]
[1732294507876,0.7768,3310.8,3309.4,1.14990793]
[1732294508075,0.7768,3310.8,3309.6,0.3011]
[1732294508960,0.7768,3310.8,3307.5,0.3011]
[1732294508961,3.56804692,3310.2,3307.5,0.3011]
[1732294509143,0.7768,3309.7,3308.0,0.3011]
[1732294509342,0.7768,3309.7,3308.1,0.03022128]
[1732294509538,0.7768,3309.7,3308.0,0.3011]
[1732294509977,0.7768,3309.7,3308.1,0.03022242]
[1732294510392,0.7768,3309.7,3308.0,0.3011]
[1732294510946,0.7768,3309.7,3308.7,3.0]
[1732294511175,2.62580428,3310.1,3308.0,0.3011]
[1732294511176,0.8236,3309.5,3308.0,0.3011]
[1732294511380,1.71799959,3309.4,3308.1,0.0302223]
[1732294511890,0.8236,3309.5,3308.7,3.0]
[1732294512042,0.8236,3309.5,3308.8,0.65680469]
[1732294513269,0.8236,3309.5,3308.3,3.8122]
[1732294513944,0.8236,3309.5,3308.3,3.7622]
[1732294514181,0.8236,3309.5,3307.9,0.3011]
[1732294514182,0.8236,3309.5,3307.9,3.3011]
[1732294514365,0.7635,3309.3,3308.0,1.01823583]
[1732294515147,0.7635,3309.3,3308.0,0.3011]
[1732294515389,0.7635,3309.3,3307.9,0.3011]
[1732294516310,0.7563,3309.1,3307.9,0.3011]
[1732294516846,2.50569959,3309.0,3307.9,0.3011]
[1732294517160,0.7877,3308.9,3307.9,0.3011]
[1732294517374,0.7877,3308.9,3308.0,0.0302256]
[1732294517567,0.7877,3308.9,3308.1,0.33313256]
[1732294517879,0.7877,3308.9,3307.9,3.3011]
[1732294518387,0.7877,3308.9,3308.0,0.03022723]
[1732294518553,0.7877,3308.9,3308.1,0.8222]
[1732294519386,0.7877,3308.9,3308.1,0.41535224]
[1732294519547,0.7877,3308.9,3307.9,3.3011]
[1732294519987,0.7877,3308.9,3307.9,0.3011]
[1732294520192,1.71799959,3308.8,3307.5,0.3011]
[1732294520363,0.7672,3308.6,3307.5,0.3011]
[1732294521284,0.7672,3308.6,3307.5,3.3011]
[1732294521460,0.7672,3308.6,3307.7,0.3011]
[1732294523805,0.7672,3308.6,3307.7,0.33132582]
[1732294523971,0.7672,3308.6,3307.7,0.3011]
[1732294525221,0.7672,3308.6,3307.9,0.3011]
[1732294526272,1.71799959,3308.5,3307.5,0.3011]
[1732294526470,1.71799959,3308.5,3307.7,0.3011]
[1732294527397,1.71799959,3308.5,3307.8,4.38247522]
[1732294527724,1.71799959,3308.5,3307.9,3.3011]
[1732294528976,1.71799959,3308.5,3308.0,0.03022457]
[1732294529182,0.7906,3308.9,3307.9,3.3011]
[1732294529402,0.7906,3308.9,3308.1,0.3011]
[1732294530685,0.7906,3308.9,3308.1,0.33132237]
[1732294530883,0.7542,3309.9,3308.7,3.3011]
[1732294531225,0.7542,3309.8,3308.7,3.3011]
[1732294531392,0.7542,3309.8,3308.9,0.3011]
[1732294531719,2.47219959,3309.8,3308.9,0.3011]
[1732294532622,2.47219959,3309.8,3308.8,0.68691469]
[1732294532623,0.7542,3309.7,3308.8,0.3011]
[1732294532939,0.7542,3309.5,3308.8,0.3011]
[1732294533624,0.7542,3309.5,3308.5,0.3011]
[1732294534417,0.55,3309.4,3308.5,0.3011]
[1732294534721,0.55,3308.8,3307.4,0.3011]
[1732294534922,0.8211,3308.6,3307.4,0.3011]
[1732294535418,0.8211,3308.4,3307.4,0.3011]
[1732294535921,0.8211,3308.4,3307.5,0.3011]
[1732294536424,0.8211,3308.4,3307.6,0.0302299]
[1732294536608,0.8211,3308.4,3307.5,0.3011]
[1732294536799,0.8211,3308.4,3307.3,0.3011]
[1732294536995,0.8211,3308.4,3307.3,0.96092768]
[1732294537797,0.8211,3308.4,3307.6,3.3011]
[1732294538040,0.8211,3308.4,3307.9,3.56804692]
[1732294538201,0.8211,3308.4,3308.0,0.3011]
[1732294539026,2.51669959,3309.4,3308.4,3.3011]
[1732294539188,2.51669959,3309.4,3308.6,0.3011]
[1732294539189,0.7987,3309.4,3308.6,0.3011]
[1732294539392,0.7987,3309.4,3308.6,0.33132086]
[1732294539793,0.7987,3309.4,3308.8,0.3011]
[1732294540729,0.7987,3309.4,3308.1,0.3011]
[1732294541293,0.7987,3309.4,3308.5,0.3011]
[1732294541936,0.8009,3309.2,3308.5,0.3011]
[1732294542113,1.71799959,3309.3,3308.5,0.3011]
[1732294542114,0.8009,3309.0,3308.5,0.3011]
[1732294542314,0.8009,3309.0,3308.1,0.3011]
[1732294543933,0.8009,3309.0,3308.1,0.33132427]
[1732294544090,0.8009,3309.0,3308.3,0.3011]
[1732294545131,0.8009,3309.0,3308.1,0.3011]
[1732294545337,0.8009,3309.0,3308.5,0.3011]
[1732294547006,0.8009,3309.0,3308.5,0.68801469]
[1732294547211,0.7682,3309.3,3308.9,3.86914692]
[1732294547724,0.7682,3309.3,3308.9,0.3011]
[1732294548056,0.7682,3309.3,3308.6,0.3011]
[1732294550167,0.7682,3309.3,3308.3,0.3011]
[1732294550328,0.7925,3309.1,3308.3,0.3011]
[1732294550851,0.7925,3309.1,3308.2,3.0]
[1732294551170,0.7925,3309.1,3308.3,0.65680469]
[1732294551928,0.7925,3308.9,3307.8,3.0]
[1732294552728,0.7925,3308.9,3307.9,3.0]
[1732294553131,1.71799959,3308.8,3307.8,2.77284472]
[1732294553331,0.7925,3308.7,3307.6,0.3011]
[1732294553558,0.7969,3308.5,3307.6,0.3011]
[1732294553777,0.7969,3308.3,3307.6,0.3011]
[1732294554646,0.7969,3308.3,3307.6,3.3011]
[1732294554864,0.7969,3308.3,3307.5,3.3011]
[1732294555573,0.7969,3308.3,3307.5,0.3011]
[1732294555733,0.7969,3308.3,3307.1,0.3011]
[1732294555933,0.7969,3308.3,3307.1,1.03955006]
[1732294557174,0.7969,3308.3,3307.1,4.03955006]
[1732294559280,1.71799959,3308.2,3307.5,0.3011]
[1732294559441,1.71799959,3308.2,3307.5,3.68829006]
[1732294560143,0.7955,3308.0,3306.6,4.32570056]
[1732294560359,0.7955,3307.8,3306.6,3.57080056]
[1732294560600,0.7955,3307.8,3306.2,3.57080056]
[1732294560948,0.7955,3307.8,3306.2,3.60104158]
[1732294561171,0.7955,3307.8,3306.3,0.3011]
[1732294561371,0.7987,3307.6,3306.3,3.87190056]
[1732294561778,0.7987,3307.6,3305.9,3.57080056]
[1732294562091,0.7987,3307.4,3306.0,0.43870006]
[1732294563150,0.7987,3307.4,3306.3,3.57080056]
[1732294563351,0.7987,3307.4,3306.4,0.55]
[1732294564091,0.7987,3307.4,3306.4,3.0]
[1732294564250,0.7987,3307.2,3306.4,3.0]
[1732294564457,0.7987,3307.2,3306.0,5.43870006]
[1732294565361,0.7798,3307.0,3306.0,5.43870006]
[1732294567795,0.8062,3306.8,3306.0,2.0]
[1732294567954,0.7881,3306.6,3306.0,2.0]
[1732294569459,0.7881,3306.6,3306.3,3.0]
[1732294570189,0.7779,3307.2,3306.3,3.0]
[1732294570785,0.7779,3307.2,3306.4,0.3011]
[1732294571100,0.7779,3307.2,3306.4,0.99131423]
[1732294571273,0.7779,3307.2,3306.4,0.3011]
[1732294572672,2.49589959,3307.2,3306.4,0.3011]
[1732294572856,2.49589959,3307.2,3307.0,3.57080056]
[1732294573086,0.7779,3307.2,3307.0,3.57080056]
[1732294573575,0.7779,3307.2,3307.0,3.87190056]
[1732294573863,0.7622,3308.2,3307.0,4.25909062]
[1732294574197,0.7622,3308.0,3307.1,3.0]
[1732294575290,0.7622,3308.0,3307.2,0.0302378]
[1732294575491,0.7622,3308.0,3307.1,3.03023433]
[1732294575676,0.7622,3308.0,3307.2,0.68719006]
[1732294576268,0.7622,3308.0,3307.4,3.57080056]
[1732294576508,0.7622,3308.0,3307.8,3.57080056]
[1732294576805,2.48779959,3308.8,3307.9,0.35708006]
[1732294577016,2.48779959,3308.8,3307.8,3.57080056]
[1732294577017,1.71799959,3308.7,3307.8,3.57080056]
[1732294577802,0.7698,3308.8,3307.9,3.55]
[1732294578004,0.7698,3308.8,3307.9,3.8511]
[1732294578170,0.7698,3308.8,3308.0,0.74219006]
[1732294578378,0.7698,3308.8,3308.0,1.04329006]
[1732294578797,0.7698,3308.8,3308.2,3.57080056]
[1732294578997,0.7885,3309.3,3308.6,3.57080056]
[1732294579307,1.71799959,3309.2,3308.7,0.35708006]
[1732294579480,1.71799959,3309.2,3308.6,3.57080056]
[1732294580076,0.7885,3309.3,3308.6,3.57080056]
[1732294580510,0.7885,3309.3,3308.3,3.0]
[1732294580680,1.71799959,3309.2,3307.9,3.0]
[1732294581010,0.01,3309.9,3308.0,0.3011]
[1732294581011,0.785,3309.0,3308.0,0.3011]
[1732294581206,0.25029996,3308.9,3308.0,0.3011]
[1732294581518,0.785,3309.0,3308.2,3.57080056]
[1732294581916,0.785,3309.0,3307.9,0.3011]
[1732294582206,0.785,3309.0,3308.0,0.3011]
[1732294582415,0.25029996,3308.9,3308.0,0.3011]
[1732294583024,0.8282,3308.8,3308.0,0.3011]
[1732294583192,0.8282,3308.8,3307.9,3.0]
[1732294583392,0.8282,3308.8,3308.2,3.57080056]
[1732294584395,0.8282,3308.8,3307.9,3.0]
[1732294584919,0.8282,3308.8,3306.7,0.38236769]
[1732294584920,0.8282,3308.8,3307.4,3.87190056]
[1732294585112,0.8282,3308.8,3307.5,3.0]
[1732294585687,0.8282,3308.8,3307.8,3.57080056]
[1732294586287,1.71799959,3308.7,3307.8,3.57080056]
[1732294586487,0.7621,3308.6,3307.8,3.57080056]
[1732294586689,0.7621,3308.6,3307.8,3.95799062]
[1732294586887,0.7621,3308.6,3308.2,3.57080056]
[1732294587909,1.71799959,3308.7,3308.2,3.97209075]
[1732294588109,1.71799959,3308.7,3308.2,3.87190056]
[1732294588323,1.71799959,3308.7,3308.2,4.2621132]
[1732294589011,1.71799959,3308.7,3308.2,3.87190056]
[1732294589402,0.8125,3308.9,3308.2,3.87190056]
[1732294589725,0.8125,3308.9,3308.6,3.57080056]
[1732294590794,0.8125,3308.9,3308.4,0.3011]
[1732294591015,0.8125,3308.9,3307.9,3.3011]
[1732294591224,3.58080056,3309.8,3307.9,0.3011]
[1732294591225,0.7745,3308.7,3307.9,0.3011]
[1732294591553,0.7744,3308.5,3307.0,4.32430056]
[1732294591735,0.7744,3308.3,3307.0,3.57080056]
[1732294591891,1.71799959,3308.4,3307.0,3.57080056]
[1732294591892,0.7744,3308.1,3307.0,3.57080056]
[1732294592238,0.7744,3308.1,3307.1,0.3011]
[1732294595425,0.24923996,3308.2,3306.8,0.3011]
[1732294595426,0.83,3307.9,3306.8,0.3011]
[1732294595920,0.02,3309.0,3306.8,0.3011]
[1732294595921,0.8189,3307.7,3306.8,0.3011]
[1732294596121,0.8189,3307.5,3306.6,3.57080056]
[1732294596417,1.71799959,3307.4,3306.7,0.3011]
[1732294596617,0.8189,3307.3,3306.7,0.3011]
[1732294596791,0.8189,3307.3,3306.2,3.57080056]
[1732294596990,0.8189,3307.1,3306.2,3.57080056]
[1732294597295,0.8189,3307.1,3306.2,3.87190056]
[1732294597721,0.8189,3307.1,3306.6,3.57080056]
[1732294600059,1.71799959,3307.2,3307.0,3.57080056]
[1732294600244,0.7518,3308.1,3307.1,0.35708006]
[1732294600561,0.7518,3308.1,3307.1,3.0]
[1732294600855,0.7518,3308.1,3307.4,3.57080056]
[1732294601063,0.7518,3308.1,3307.4,3.87190056]
[1732294602262,0.7918,3308.0,3307.2,0.3011]
[1732294602629,0.7918,3308.0,3307.6,2.0]
[1732294602828,1.71799959,3307.9,3307.6,2.0]
[1732294605430,1.71799959,3307.8,3307.6,2.0]
[1732294605961,0.7918,3308.0,3307.7,0.3011]
[1732294606164,0.7773,3309.1,3307.8,3.87190056]
[1732294606463,0.7773,3308.9,3307.8,3.87190056]
[1732294606666,0.24811973,3308.8,3307.8,4.69050056]
[1732294606855,0.7773,3308.9,3307.8,4.69050056]
[1732294609070,0.7773,3308.9,3307.8,3.87190056]
[1732294610402,1.70389725,3308.8,3307.8,3.87190056]
[1732294611794,0.807,3308.7,3307.9,0.3011]
[1732294611998,0.8109,3308.6,3307.9,0.3011]
[1732294612162,0.8109,3308.6,3307.6,2.3011]
[1732294613296,1.70389725,3308.5,3307.6,2.3011]
[1732294613497,0.79,3308.4,3307.6,2.3011]
[1732294613697,0.01,3309.1,3307.6,2.3011]
[1732294613698,0.79,3308.2,3307.6,2.3011]
[1732294613858,0.79,3308.2,3307.6,2.0]
[1732294614057,1.70389725,3308.3,3307.6,2.0]
[1732294614058,0.79,3308.0,3307.6,2.0]
[1732294615091,0.74328697,3308.3,3307.1,0.3011]
[1732294616367,0.74328697,3308.3,3307.0,3.57080056]
[1732294616368,0.74328697,3308.3,3307.3,0.3011]
[1732294617631,0.74328697,3308.3,3307.5,0.3011]
[1732294618240,1.51648697,3308.3,3307.5,0.3011]
[1732294619435,0.7732,3308.3,3307.5,0.3011]
[1732294620460,0.7732,3308.3,3307.3,0.3011]
[1732294620619,0.7732,3308.3,3307.3,0.63981901]
[1732294620816,0.7732,3308.3,3307.4,3.87190056]
[1732294621057,0.7732,3308.3,3307.6,0.3011]
[1732294622126,0.8056,3308.7,3307.9,0.3011]
[1732294622325,2.11,3308.6,3307.9,0.3011]
[1732294622857,2.11,3308.6,3308.2,3.87190056]
[1732294623558,2.11,3309.0,3308.2,0.3011]
[1732294623758,2.39998,3309.0,3308.2,0.3011]
[1732294624052,2.39998,3309.0,3308.1,0.3011]
[1732294624951,2.11,3309.0,3308.1,0.3011]
[1732294625154,2.11,3309.0,3308.3,0.3011]
[1732294626140,2.11,3309.0,3308.4,0.3011]
[1732294627215,2.11,3309.0,3308.2,0.3011]
[1732294627420,2.11,3309.0,3308.2,0.73805006]
[1732294627648,2.11,3309.0,3308.4,0.3011]
[1732294628343,2.11,3309.3,3308.4,0.3011]
[1732294628523,2.11,3309.3,3308.3,0.3011]
[1732294631060,2.11,3309.3,3308.3,3.07334439]
[1732294631557,0.8289,3309.2,3308.0,3.90314439]
[1732294631764,0.8289,3309.0,3307.8,3.3011]
[1732294632260,0.8289,3309.0,3307.7,3.60204439]
[1732294632460,0.8089,3308.8,3307.4,3.53354439]
[1732294632666,0.8089,3308.6,3307.4,3.53354439]
[1732294633167,2.11,3308.7,3308.1,0.7613]
[1732294633341,2.11,3308.8,3308.1,0.7613]
[1732294633659,2.11,3308.8,3308.1,1.11465444]
[1732294634047,2.11,3308.8,3308.3,2.77224439]
[1732294634640,2.11,3308.9,3308.6,2.77224439]
[1732294634964,2.11,3308.9,3308.8,0.8074]
[1732294635261,2.11,3309.5,3308.8,0.8074]
[1732294635486,2.11,3309.5,3309.0,2.77224439]
[1732294636197,2.11,3309.5,3308.8,3.57964439]
[1732294636552,2.11,3309.5,3308.8,3.96771883]
[1732294636757,2.11,3309.5,3309.1,2.77224439]
[1732294637384,2.11,3309.9,3309.1,2.77224439]
[1732294637653,2.11,3309.9,3309.4,3.57964439]
[1732294637861,2.11,3309.9,3309.7,2.77224439]
[1732294638094,2.11,3310.2,3309.7,2.77224439]
[1732294638299,2.11,3310.2,3310.0,2.77224439]
[1732294638502,2.11,3310.5,3310.0,2.77224439]
[1732294639157,2.11,3310.5,3310.1,0.8]
[1732294639608,2.11,3310.5,3309.8,0.772]
[1732294639753,2.11,3310.5,3309.8,3.772]
[1732294640078,2.11,3310.5,3310.0,2.77224439]
[1732294641207,2.11,3310.5,3309.8,3.54424439]
[1732294641793,2.321,3310.5,3309.8,3.54424439]
[1732294642103,2.321,3310.5,3309.6,0.33011]
[1732294642104,2.11,3310.4,3309.2,3.52524439]
[1732294642261,0.7544,3310.3,3309.2,3.52524439]
[1732294642616,0.28644,3310.2,3309.2,3.52524439]
[1732294643095,0.28644,3310.2,3309.2,2.77224439]
[1732294643405,0.7675,3310.1,3309.2,2.77224439]
[1732294644007,0.7675,3310.1,3309.5,2.77224439]
[1732294644180,2.11,3310.4,3309.8,2.77224439]
[1732294644389,2.11,3310.4,3310.1,2.77224439]
[1732294644712,2.11,3310.5,3310.1,2.77224439]
[1732294645705,2.11,3310.5,3309.8,2.77224439]
[1732294646909,0.7968,3310.4,3309.5,0.7561]
[1732294647080,0.7968,3310.4,3309.7,3.0]
[1732294648715,0.7968,3310.4,3309.6,3.56618995]
[1732294648877,0.7968,3310.4,3309.3,3.0]
[1732294649073,2.11,3310.3,3309.4,0.656619]
[1732294650517,0.8138,3310.2,3309.4,0.656619]
[1732294650728,0.8138,3310.2,3309.2,3.56618995]
[1732294650894,0.8138,3310.2,3309.3,0.3011]
[1732294651093,0.8138,3310.2,3309.1,0.8065]
[1732294651299,0.8138,3310.2,3309.2,0.3011]
[1732294651500,0.29238,3310.1,3309.2,0.3011]
[1732294651895,0.29238,3310.1,3309.4,3.86728995]
[1732294652086,0.8138,3310.2,3309.4,3.86728995]
[1732294652486,2.11,3310.1,3309.4,3.86728995]
[1732294653731,2.11,3310.1,3309.1,0.8065]
[1732294653732,2.11,3310.1,3309.6,0.3011]
[1732294654496,2.11,3310.1,3308.7,3.0]
[1732294654497,2.11,3310.9,3310.1,0.3011]
[1732294654697,0.005,3311.5,3310.6,0.3011]
[1732294654698,2.11,3311.4,3310.6,0.3011]
[1732294654915,2.39828,3311.4,3310.8,3.56618995]
[1732294655229,0.005,3311.5,3310.8,3.56618995]
[1732294655230,2.11,3311.3,3310.9,0.3011]
[1732294655522,2.11,3311.3,3310.8,3.56618995]
[1732294656294,0.8087,3311.2,3310.0,3.56618995]